bitfinex/quotes_BTCUSD_20250331
["timestamp","ask_amount","ask_price","bid_price","bid_amount"]
[1743390930106,0.59789172,81867.0,81866.0,0.0001682]
[1743390931313,0.57499672,81867.0,81866.0,0.0001682]
[1743390932095,0.3201377,81867.0,81866.0,0.0123832]
[1743390932431,0.3201377,81867.0,81866.0,0.0874832]
[1743390933090,0.3191377,81867.0,81866.0,0.0874832]
[1743390933592,0.0191377,81867.0,81866.0,0.1372832]
[1743390933798,0.0191377,81867.0,81866.0,0.23918434]
[1743390934009,7e-07,81867.0,81866.0,0.35802658]
[1743390934357,0.0003368,81872.0,81871.0,0.27104085]
[1743390934584,0.0003368,81872.0,81871.0,0.34614085]
[1743390934782,0.0003368,81872.0,81871.0,0.37686494]
[1743390934987,0.01946864,81872.0,81871.0,0.37686494]
[1743390935185,0.0003364,81875.0,81874.0,0.25649]
[1743390935459,0.0003364,81875.0,81874.0,0.67506474]
[1743390937103,0.0003364,81875.0,81874.0,0.53186474]
[1743390937335,0.0003364,81875.0,81874.0,0.67802474]
[1743390937770,0.0003364,81875.0,81874.0,0.68202474]
[1743390938353,0.0003364,81875.0,81874.0,0.67902474]
[1743390938823,0.0003364,81875.0,81874.0,0.53586474]
[1743390939035,0.0003364,81875.0,81874.0,0.67502474]
[1743390939482,2e-07,81876.0,81875.0,0.15665385]
[1743390939710,2e-07,81876.0,81875.0,0.72696277]
[1743390940366,2e-07,81876.0,81875.0,0.72596277]
[1743390940956,2e-07,81876.0,81875.0,0.73096277]
[1743390941155,0.0010002,81876.0,81875.0,0.73596277]
[1743390942566,0.0010002,81876.0,81875.0,0.71642192]
[1743390942752,0.0010002,81876.0,81875.0,0.59613709]
[1743390942952,0.0010002,81876.0,81875.0,0.61439709]
[1743390943151,0.0010002,81876.0,81875.0,0.62893794]
[1743390943635,0.0010002,81876.0,81875.0,0.19509709]
[1743390944857,0.56809949,81876.0,81875.0,0.01]
[1743390945063,0.58031249,81876.0,81875.0,0.15316]
[1743390945669,0.57931249,81876.0,81875.0,0.14816]
[1743390945872,0.256512,81867.0,81866.0,0.0001682]
[1743390946085,0.556512,81867.0,81866.0,0.1433282]
[1743390946423,0.556512,81867.0,81866.0,0.0001682]
[1743390946625,0.57564806,81867.0,81866.0,0.1433282]
[1743390947129,0.556512,81867.0,81866.0,0.1433282]
[1743390947240,0.556512,81867.0,81866.0,0.1463282]
[1743390948150,0.556512,81867.0,81866.0,0.1503282]
[1743390948977,0.6634643,81867.0,81866.0,0.1503282]
[1743390949181,0.556512,81867.0,81866.0,0.1503282]
[1743390949875,0.556512,81867.0,81866.0,0.1473282]
[1743390950117,0.57564866,81867.0,81866.0,0.1433282]
[1743390951327,0.31913666,81867.0,81866.0,0.1433282]
[1743390951535,0.31913666,81867.0,81866.0,0.3998442]
[1743390951536,0.01913666,81867.0,81866.0,0.3998442]
[1743390951772,0.01913666,81867.0,81866.0,0.46738019]
[1743390952006,0.01913666,81867.0,81866.0,0.48192104]
[1743390953643,0.01913666,81867.0,81866.0,0.48392104]
[1743390954138,0.01913666,81867.0,81866.0,0.48692104]
[1743390954281,0.01913666,81867.0,81866.0,0.51113551]
[1743390954492,0.02013666,81867.0,81866.0,0.51113551]
[1743390954662,0.02013666,81867.0,81866.0,0.51613551]
[1743390954867,0.02113666,81867.0,81866.0,0.51613551]
[1743390955692,0.02113666,81867.0,81866.0,0.29089867]
[1743390955891,0.02113666,81867.0,81866.0,0.4098442]
[1743390956554,0.02113666,81867.0,81866.0,0.2666842]
[1743390956759,0.02113666,81867.0,81866.0,0.4098442]
[1743390957148,0.002,81867.0,81866.0,0.4098442]
[1743390960094,0.02113362,81867.0,81866.0,0.4098442]
[1743390965174,0.02113362,81867.0,81866.0,0.42438505]
[1743390965351,0.02113362,81867.0,81866.0,0.67096988]
[1743390967171,0.002,81867.0,81866.0,0.67096988]
[1743390967495,0.002,81867.0,81866.0,0.68603019]
[1743390968828,1e-06,81867.0,81866.0,1.13033019]
[1743390972124,1e-06,81867.0,81866.0,1.10533019]
[1743390972341,1e-06,81867.0,81866.0,1.13033019]
[1743390972869,1e-06,81867.0,81866.0,0.98717019]
[1743390973076,1e-06,81867.0,81866.0,1.13029019]
[1743390973283,2e-07,81876.0,81875.0,0.27102785]
[1743390973498,2e-07,81876.0,81875.0,0.43961268]
[1743390974218,2e-07,81876.0,81875.0,0.53443268]
[1743390974426,2e-07,81876.0,81875.0,0.53843268]
[1743390974664,2e-07,81876.0,81875.0,0.54343268]
[1743390974866,0.01912998,81876.0,81875.0,0.42314785]
[1743390975065,0.01912998,81876.0,81875.0,0.28002785]
[1743390975398,0.01912998,81876.0,81875.0,0.42314785]
[1743390976000,0.01912998,81876.0,81875.0,0.28002785]
[1743390976401,0.01912998,81876.0,81875.0,0.265487]
[1743390976601,0.10192998,81876.0,81875.0,0.164333]
[1743390977144,2e-07,81876.0,81875.0,0.164333]
[1743390977286,2e-07,81876.0,81875.0,0.16677555]
[1743390977485,2e-07,81876.0,81875.0,0.164333]
[1743390977692,2e-07,81876.0,81875.0,0.29915868]
[1743390978282,2e-07,81876.0,81875.0,0.34745868]
[1743390979946,2e-07,81876.0,81875.0,0.20433868]
[1743390980155,2e-07,81876.0,81875.0,0.021213]
[1743390980156,0.01912967,81876.0,81875.0,0.021213]
[1743390980405,0.01912967,81876.0,81875.0,0.009]
[1743390980609,0.01912967,81876.0,81875.0,0.164333]
[1743390980809,0.01912967,81876.0,81875.0,0.021213]
[1743390981067,0.26340067,81876.0,81875.0,0.15212]
[1743390981270,0.01912967,81876.0,81875.0,0.408607]
[1743390981672,0.01912967,81876.0,81875.0,0.15212]
[1743390981850,0.01912967,81876.0,81875.0,0.408607]
[1743390982193,0.01912967,81876.0,81875.0,0.5032099]
[1743390982450,0.01912967,81876.0,81875.0,0.408607]
[1743390987074,0.2564842,81876.0,81875.0,0.009]
[1743390987274,2e-07,81876.0,81875.0,0.15212]
[1743390987493,2e-07,81876.0,81875.0,0.164333]
[1743390990433,0.01913295,81876.0,81875.0,0.164333]
[1743390990769,0.01913295,81876.0,81875.0,0.15212]
[1743390991174,0.01913295,81876.0,81875.0,0.164333]
[1743390993013,0.41164595,81876.0,81875.0,0.009]
[1743390993172,0.41164595,81876.0,81875.0,0.15212]
[1743390994135,0.39943295,81876.0,81875.0,0.15212]
[1743390994370,0.01913295,81876.0,81875.0,0.265487]
[1743390994575,0.01913295,81876.0,81875.0,0.42314785]
[1743390995252,0.01913295,81876.0,81875.0,0.265487]
[1743390995423,0.01913295,81876.0,81875.0,0.50478015]
[1743390995631,0.01913295,81876.0,81875.0,0.408607]
[1743390996575,0.01913295,81876.0,81875.0,0.44822865]
[1743390997105,2e-07,81876.0,81875.0,0.44822865]
[1743391000220,0.01913103,81876.0,81875.0,0.44822865]
[1743391003272,0.0803,81895.0,81875.0,0.44822865]
[1743391003273,0.0803,81895.0,81892.0,0.256432]
[1743391003474,0.08040314,81895.0,81893.0,0.14312]
[1743391003877,0.09953323,81895.0,81894.0,0.244218]
[1743391004080,0.01923323,81895.0,81894.0,0.256428]
[1743391005857,0.01923323,81895.0,81894.0,0.399508]
[1743391007493,0.01923323,81895.0,81894.0,0.401508]
[1743391009069,0.01923323,81895.0,81894.0,0.260428]
[1743391009296,0.01923323,81895.0,81894.0,0.403508]
[1743391009500,0.01923323,81895.0,81894.0,0.004]
[1743391009700,0.35425823,81895.0,81894.0,0.14708]
[1743391010950,0.35425823,81895.0,81894.0,0.0041682]
[1743391010951,0.70045823,81895.0,81894.0,0.0041682]
[1743391011165,0.73958396,81895.0,81894.0,0.0041682]
[1743391011372,0.73958396,81895.0,81884.0,0.14308]
[1743391011373,0.681256,81885.0,81884.0,0.14308]
[1743391011578,0.3,81871.0,81870.0,0.6345682]
[1743391011775,0.3,81871.0,81870.0,0.7776482]
[1743391012214,0.31482595,81871.0,81870.0,0.7776482]
[1743391012602,0.01482595,81871.0,81870.0,0.7776482]
[1743391012829,0.312214,81873.0,81870.0,0.7776482]
[1743391013158,0.312214,81873.0,81870.0,0.7826482]
[1743391013413,0.3,81871.0,81870.0,0.7826482]
[1743391013781,0.312214,81871.0,81870.0,0.7876482]
[1743391014000,0.3,81871.0,81870.0,0.7876482]
[1743391014606,0.31490012,81873.0,81870.0,0.7876482]
[1743391014872,0.31490012,81873.0,81870.0,0.7826482]
[1743391015075,0.31490012,81873.0,81870.0,0.7876482]
[1743391015230,0.3,81871.0,81870.0,0.7826482]
[1743391015437,0.3,81871.0,81870.0,0.7856482]
[1743391015641,0.390814,81871.0,81870.0,0.6375682]
[1743391015841,0.390814,81871.0,81870.0,0.7846482]
[1743391016416,0.390814,81871.0,81870.0,0.6385682]
[1743391016684,0.390814,81871.0,81870.0,0.7816482]
[1743391016896,0.390814,81871.0,81870.0,0.7846482]
[1743391017059,0.390814,81871.0,81870.0,0.7806482]
[1743391017240,0.390814,81871.0,81870.0,0.7776482]
[1743391017444,0.390814,81871.0,81870.0,0.6345682]
[1743391017806,0.439514,81871.0,81870.0,0.7776882]
[1743391018009,0.53749276,81871.0,81870.0,0.0001682]
[1743391018392,0.439514,81871.0,81870.0,0.0041682]
[1743391018602,0.439514,81871.0,81870.0,0.0071682]
[1743391018814,0.439514,81871.0,81870.0,0.0041682]
[1743391019048,0.439514,81871.0,81870.0,0.0001682]
[1743391022857,0.441514,81871.0,81870.0,0.0001682]
[1743391023272,0.53969276,81871.0,81870.0,0.0001682]
[1743391023677,0.55623361,81871.0,81870.0,0.0001682]
[1743391025061,0.55423361,81871.0,81870.0,0.0001682]
[1743391025335,0.441514,81871.0,81870.0,0.0001682]
[1743391025505,0.442514,81871.0,81870.0,0.0001682]
[1743391026260,0.443514,81871.0,81870.0,0.0001682]
[1743391026738,0.446514,81871.0,81870.0,0.0001682]
[1743391028751,0.46925985,81871.0,81870.0,0.0001682]
[1743391029129,0.54315715,81871.0,81870.0,0.0001682]
[1743391029673,0.446514,81871.0,81870.0,0.0001682]
[1743391030918,0.682328,81862.0,81861.0,0.0031596]
[1743391032799,0.685328,81862.0,81861.0,0.0031596]
[1743391033027,0.688328,81862.0,81861.0,6e-07]
[1743391033184,0.80861283,81862.0,81861.0,6e-07]
[1743391034574,0.80561283,81862.0,81861.0,6e-07]
[1743391034775,0.63756,81852.0,81851.0,0.0001684]
[1743391034974,0.63756,81852.0,81851.0,0.0002892]
[1743391036010,0.7536267,81852.0,81851.0,0.0002892]
[1743391037239,0.7546267,81852.0,81851.0,0.0002892]
[1743391037434,0.7546267,81852.0,81851.0,1e-08]
[1743391037435,0.76358987,81852.0,81851.0,1e-08]
[1743391037639,0.81148987,81852.0,81851.0,1e-08]
[1743391038000,0.81148987,81852.0,81846.0,1e-08]
[1743391038001,0.685475,81847.0,81846.0,1e-08]
[1743391038207,0.80575983,81847.0,81846.0,1.6e-07]
[1743391039202,0.556623,81832.0,81831.0,0.003732]
[1743391039412,0.637623,81832.0,81831.0,0.003732]
[1743391039928,0.68780402,81832.0,81831.0,0.003732]
[1743391040082,0.78346812,81832.0,81831.0,0.003732]
[1743391040516,0.80823926,81832.0,81831.0,0.003732]
[1743391040907,0.8321337,81832.0,81831.0,0.003732]
[1743391041107,0.80823926,81832.0,81831.0,0.003732]
[1743391041308,0.67378583,81832.0,81831.0,0.003732]
[1743391041521,0.67578583,81832.0,81831.0,0.003732]
[1743391041735,0.556654,81822.0,81816.0,0.002]
[1743391042943,0.57942514,81822.0,81821.0,0.0128863]
[1743391043304,0.60315092,81822.0,81821.0,0.0128863]
[1743391043511,0.78644542,81822.0,81821.0,3e-07]
[1743391043940,0.556669,81817.0,81816.0,3e-07]
[1743391044159,0.556669,81817.0,81812.0,5e-07]
[1743391044160,0.556681,81813.0,81812.0,5e-07]
[1743391044315,0.556681,81813.0,81788.0,0.0001682]
[1743391044316,0.3,81793.0,81788.0,0.0001682]
[1743391044534,0.012227,81780.0,81772.0,0.0453]
[1743391044734,0.012227,81780.0,81779.0,0.1433282]
[1743391045342,0.556779,81782.0,81779.0,0.1433282]
[1743391045569,0.312227,81783.0,81779.0,0.1433282]
[1743391045772,0.256779,81782.0,81779.0,0.1383282]
[1743391046086,0.012227,81781.0,81779.0,0.1383282]
[1743391046383,0.3,81779.0,81771.0,0.0855]
[1743391046595,0.312228,81779.0,81778.0,0.25218422]
[1743391046815,0.3,81779.0,81778.0,0.29538354]
[1743391047018,0.001,81780.0,81779.0,0.256789]
[1743391048780,0.001,81780.0,81779.0,0.331289]
[1743391048983,0.00046845,81784.0,81779.0,0.53969083]
[1743391049139,0.00046845,81784.0,81783.0,0.256776]
[1743391049339,0.00046845,81784.0,81783.0,0.255776]
[1743391049743,0.00046845,81784.0,81783.0,0.254776]
[1743391049957,0.00046845,81784.0,81783.0,0.397976]
[1743391050138,0.00046845,81784.0,81783.0,0.42794732]
[1743391050336,0.25724145,81784.0,81783.0,0.03097132]
[1743391050576,0.25724145,81784.0,81783.0,0.1432]
[1743391050776,0.25824145,81784.0,81783.0,0.1432]
[1743391051342,0.256785,81780.0,81775.0,0.02475325]
[1743391051540,0.012228,81779.0,81771.0,0.004]
[1743391051764,0.244578,81774.0,81772.0,0.1432]
[1743391052142,0.256798,81776.0,81772.0,0.1432]
[1743391052732,0.244564,81778.0,81772.0,0.1432]
[1743391053089,0.256792,81778.0,81775.0,0.004]
[1743391053290,0.24457,81776.0,81772.0,0.155429]
[1743391053442,0.24557,81776.0,81772.0,0.1432]
[1743391053640,0.24457,81776.0,81772.0,0.1432]
[1743391053875,0.256806,81774.0,81772.0,0.1432]
[1743391054050,0.256806,81774.0,81773.0,0.14336]
[1743391054254,0.24457,81776.0,81773.0,0.14336]
[1743391054451,0.012228,81776.0,81773.0,0.14336]
[1743391054656,0.257798,81776.0,81773.0,0.14336]
[1743391055214,0.256804,81774.0,81773.0,0.14336]
[1743391055624,0.012228,81776.0,81773.0,0.14336]
[1743391055625,0.012228,81775.0,81773.0,0.14336]
[1743391056162,0.012228,81775.0,81773.0,0.14736]
[1743391056363,0.02269125,81774.0,81773.0,0.14736]
[1743391056592,0.02269125,81774.0,81773.0,0.14336]
[1743391057398,0.012228,81774.0,81773.0,0.14336]
[1743391057869,0.012228,81774.0,81773.0,0.14736]
[1743391058518,0.012228,81773.0,81772.0,0.0001684]
[1743391058728,0.012228,81773.0,81772.0,0.1437684]
[1743391058729,0.256807,81773.0,81772.0,0.1437684]
[1743391059750,0.258807,81773.0,81772.0,0.1477684]
[1743391060007,0.257807,81773.0,81772.0,0.1477684]
[1743391060631,0.257807,81773.0,81772.0,0.14680985]
[1743391060789,0.5667953,81773.0,81772.0,0.004]
[1743391060978,0.6421953,81773.0,81772.0,0.004]
[1743391061643,0.312229,81772.0,81771.0,0.004]
[1743391062558,0.012229,81772.0,81771.0,0.004]
[1743391062781,0.012229,81772.0,81771.0,0.14756]
[1743391062998,0.013229,81772.0,81771.0,0.14756]
[1743391064154,0.013229,81772.0,81771.0,0.004]
[1743391064371,0.03615841,81772.0,81771.0,0.004]
[1743391064564,0.013229,81772.0,81771.0,0.004]
[1743391064826,0.03597076,81772.0,81771.0,0.004]
[1743391064984,0.03697076,81772.0,81771.0,0.004]
[1743391066151,0.04834579,81772.0,81771.0,0.004]
[1743391069394,0.04834579,81772.0,81771.0,0.0041682]
[1743391071277,0.33697076,81772.0,81771.0,0.0041682]
[1743391072036,0.314229,81772.0,81771.0,0.0041682]
[1743391077200,0.33705207,81772.0,81771.0,0.0041682]
[1743391077756,0.02482307,81772.0,81771.0,0.0041682]
[1743391078291,0.03623581,81772.0,81771.0,0.0041682]
[1743391079846,0.03623581,81772.0,81771.0,0.2368772]
[1743391080221,0.03623581,81772.0,81771.0,0.2857772]
[1743391080650,0.03523581,81772.0,81771.0,0.2095772]
[1743391080903,0.02382307,81772.0,81771.0,0.1494482]
[1743391081107,0.02382307,81772.0,81771.0,0.1616772]
[1743391081308,0.001,81772.0,81771.0,0.1616772]
[1743391081519,0.312228,81778.0,81772.0,0.256811]
[1743391081932,0.312228,81778.0,81773.0,0.256804]
[1743391082050,0.312228,81778.0,81773.0,0.35135494]
[1743391082273,0.312228,81778.0,81773.0,0.256804]
[1743391082471,0.012228,81777.0,81772.0,0.256811]
[1743391082714,0.312228,81778.0,81773.0,0.012228]
[1743391082965,0.01142499,81776.0,81773.0,0.012228]
[1743391083109,0.01142499,81776.0,81772.0,0.012229]
[1743391083337,0.012228,81775.0,81771.0,0.1504482]
[1743391083537,0.256804,81774.0,81771.0,0.1504482]
[1743391083694,0.312229,81772.0,81771.0,0.1504482]
[1743391083901,0.3,81772.0,81771.0,0.3950332]
[1743391084099,0.3,81772.0,81771.0,0.1484482]
[1743391084348,0.3,81772.0,81771.0,0.1606772]
[1743391084722,0.31142499,81772.0,81771.0,0.1606772]
[1743391085143,0.31142499,81772.0,81771.0,0.1626772]
[1743391086139,0.01142499,81772.0,81771.0,0.2388772]
[1743391087338,0.01142499,81772.0,81771.0,0.2877772]
[1743391087896,0.01142499,81772.0,81771.0,0.2857772]
[1743391088258,0.01142499,81772.0,81771.0,0.31410163]
[1743391088457,0.01142499,81772.0,81771.0,0.31510163]
[1743391091262,0.0003368,81783.0,81782.0,0.012227]
[1743391091676,0.0003368,81783.0,81782.0,0.244552]
[1743391091971,0.0003368,81783.0,81782.0,0.31986323]
[1743391092144,0.0003368,81783.0,81782.0,0.33209023]
[1743391092326,0.0003368,81783.0,81782.0,0.33309023]
[1743391092536,0.0003368,81783.0,81782.0,0.33409023]
[1743391094143,0.0003368,81783.0,81782.0,0.002]
[1743391094345,0.0003368,81783.0,81782.0,0.14624]
[1743391094346,0.3003368,81783.0,81782.0,0.14624]
[1743391094958,0.3003368,81783.0,81782.0,0.390792]
[1743391095757,0.0003368,81783.0,81782.0,0.403019]
[1743391096402,0.01175955,81783.0,81782.0,0.403019]
[1743391101524,0.0003368,81783.0,81782.0,0.403019]
[1743391103345,0.0003368,81783.0,81782.0,0.449019]
[1743391103565,0.0003368,81783.0,81782.0,0.46316057]
[1743391103772,0.0003368,81783.0,81782.0,0.449019]
[1743391104151,0.0003368,81783.0,81782.0,0.448019]
[1743391104550,0.0003368,81783.0,81782.0,0.450019]
[1743391104897,0.0003368,81783.0,81782.0,0.449019]
[1743391105098,0.0003368,81783.0,81782.0,0.447019]
[1743391105300,0.0003368,81783.0,81782.0,0.453019]
[1743391105499,0.0003368,81783.0,81782.0,0.451019]
[1743391105961,0.0003368,81783.0,81782.0,0.449019]
[1743391106267,0.0003368,81783.0,81782.0,0.453019]
[1743391106493,0.0003368,81783.0,81782.0,0.57330383]
[1743391106651,0.0003368,81783.0,81782.0,0.58784468]
[1743391107461,0.0003368,81783.0,81782.0,0.58384468]
[1743391107818,0.0003368,81783.0,81782.0,0.58984468]
[1743391108116,0.0003368,81783.0,81782.0,0.58784468]
[1743391108323,0.0013368,81783.0,81782.0,0.59284468]
[1743391108569,0.0013368,81783.0,81782.0,0.458019]
[1743391108771,0.0013368,81783.0,81782.0,0.313779]
[1743391108900,0.0013368,81783.0,81782.0,0.458139]
[1743391109101,0.0013368,81783.0,81782.0,0.313779]
[1743391109306,0.0013368,81783.0,81782.0,0.412099]
[1743391109503,0.0013368,81783.0,81782.0,0.267779]
[1743391109703,0.0013368,81783.0,81782.0,0.412139]
[1743391111426,0.0013368,81783.0,81782.0,0.267779]
[1743391111681,0.0013368,81783.0,81782.0,0.412259]
[1743391114683,0.0013368,81783.0,81782.0,0.15548]
[1743391119216,0.0013368,81783.0,81782.0,0.167707]
[1743391120038,0.0013368,81783.0,81782.0,0.15548]
[1743391121382,0.0013368,81783.0,81782.0,0.167707]
[1743391121920,0.0013368,81783.0,81782.0,0.17015237]
[1743391122138,0.0013368,81783.0,81782.0,0.38217268]
[1743391122349,0.0013368,81783.0,81782.0,0.43127268]
[1743391122920,0.0013368,81783.0,81782.0,0.44523097]
[1743391126990,2.5e-07,81784.0,81783.0,0.40511685]
[1743391127144,2.5e-07,81784.0,81783.0,0.52540168]
[1743391128127,2.5e-07,81784.0,81783.0,0.53140168]
[1743391128681,2.5e-07,81784.0,81783.0,0.52540168]
[1743391128885,2.5e-07,81784.0,81783.0,0.53140168]
[1743391129615,2.5e-07,81784.0,81783.0,0.53740168]
[1743391129837,2.5e-07,81784.0,81783.0,0.461016]
[1743391130066,2.5e-07,81784.0,81783.0,0.4611842]
[1743391130289,0.00033665,81784.0,81783.0,0.33148505]
[1743391130506,0.00033665,81784.0,81783.0,0.47572505]
[1743391132087,0.00033665,81784.0,81783.0,0.59600988]
[1743391135442,6.5e-07,81784.0,81783.0,0.59600988]
[1743391136395,6.5e-07,81784.0,81783.0,1.01530988]
[1743391136638,6.5e-07,81784.0,81783.0,0.87106988]
[1743391136851,6.5e-07,81784.0,81783.0,1.01498988]
[1743391138027,6.5e-07,81784.0,81783.0,1.65010988]
[1743391139516,6.5e-07,81784.0,81783.0,1.48182505]
[1743391139740,6.5e-07,81784.0,81783.0,1.33790505]
[1743391139980,6.5e-07,81784.0,81783.0,1.48174505]
[1743391140681,6.5e-07,81784.0,81783.0,1.4672042]
[1743391140915,6.5e-07,81784.0,81783.0,1.4671242]
[1743391142124,6.5e-07,81784.0,81783.0,1.4612442]
[1743391142354,6.5e-07,81784.0,81783.0,0.8920642]
[1743391142588,6.5e-07,81784.0,81783.0,1.0419442]
[1743391142804,6.5e-07,81784.0,81783.0,0.9040642]
[1743391143003,6.5e-07,81784.0,81783.0,1.0418642]
[1743391143402,6.5e-07,81784.0,81783.0,1.0478642]
[1743391143791,0.08000065,81784.0,81783.0,1.0478642]
[1743391143988,0.08000065,81784.0,81783.0,0.7850082]
[1743391144398,0.08000065,81784.0,81783.0,0.8032352]
[1743391144603,0.32454665,81784.0,81783.0,0.7910082]
[1743391144806,0.33677365,81784.0,81783.0,0.7910082]
[1743391145005,0.33677365,81784.0,81783.0,0.7790082]
[1743391145182,0.33677365,81784.0,81783.0,0.7830082]
[1743391145379,0.33677365,81784.0,81783.0,0.7860082]
[1743391145680,0.33677365,81784.0,81783.0,0.6352882]
[1743391145916,0.33677365,81784.0,81783.0,0.7790482]
[1743391146091,0.72566538,81784.0,81783.0,0.0001682]
[1743391146290,0.68557365,81784.0,81783.0,0.0001682]
[1743391146708,0.68557365,81784.0,81783.0,0.0061682]
[1743391146901,0.68557365,81784.0,81783.0,0.0031682]
[1743391147806,0.68557365,81784.0,81783.0,0.0001682]
[1743391148113,0.68557365,81784.0,81783.0,0.0011682]
[1743391148274,0.68557365,81784.0,81783.0,0.0021682]
[1743391149666,0.69698895,81784.0,81783.0,0.0021682]
[1743391150458,0.69698895,81784.0,81779.0,0.0001682]
[1743391150459,0.1288,81773.0,81771.0,0.0041682]
[1743391150692,0.43893718,81773.0,81771.0,0.0041682]
[1743391150892,0.45035248,81773.0,81771.0,0.0041682]
[1743391151473,0.45035248,81773.0,81772.0,2e-07]
[1743391152172,0.45435248,81773.0,81772.0,2e-07]
[1743391152374,0.57563731,81773.0,81772.0,2e-07]
[1743391152574,0.441029,81770.0,81769.0,6e-07]
[1743391152794,0.466029,81770.0,81769.0,6e-07]
[1743391153013,0.50481833,81770.0,81769.0,6e-07]
[1743391153237,0.64901784,81770.0,81769.0,6e-07]
[1743391153452,0.64901784,81770.0,81749.0,0.0001683]
[1743391153453,0.686058,81757.0,81749.0,0.0001683]
[1743391154617,0.6974733,81757.0,81749.0,0.0001683]
[1743391154850,0.69752009,81757.0,81749.0,0.0001683]
[1743391155521,0.69852009,81757.0,81749.0,0.0001683]
[1743391156151,0.01246209,81757.0,81749.0,0.2448163]
[1743391156358,0.01346209,81757.0,81749.0,0.0001683]
[1743391156617,0.01346209,81757.0,81751.0,0.244642]
[1743391156776,0.01346209,81757.0,81751.0,0.256874]
[1743391157146,0.01346209,81757.0,81754.0,0.012231]
[1743391157749,0.01346209,81757.0,81756.0,0.0425643]
[1743391157955,0.01246209,81757.0,81756.0,0.014231]
[1743391158169,0.01146209,81757.0,81756.0,0.014231]
[1743391158876,0.01146209,81757.0,81756.0,0.017231]
[1743391159220,4.679e-05,81757.0,81756.0,0.017231]
[1743391159533,4.679e-05,81757.0,81756.0,0.020231]
[1743391160017,4.679e-05,81757.0,81756.0,0.10964363]
[1743391160152,4.679e-05,81757.0,81756.0,0.020231]
[1743391160972,0.08074679,81757.0,81756.0,0.008]
[1743391161639,4.679e-05,81757.0,81756.0,0.008]
[1743391161837,0.01139716,81757.0,81756.0,0.008]
[1743391163262,0.56825516,81757.0,81756.0,0.15224]
[1743391163766,0.56825516,81757.0,81756.0,0.15232]
[1743391163905,0.59095818,81757.0,81756.0,0.15232]
[1743391164104,0.59095818,81757.0,81756.0,0.008]
[1743391164292,0.59095818,81757.0,81756.0,0.15232]
[1743391164915,0.63945818,81757.0,81756.0,0.008]
[1743391165117,0.72015818,81757.0,81756.0,0.008]
[1743391165982,0.72015818,81757.0,81756.0,0.0081682]
[1743391166403,0.72015818,81757.0,81756.0,0.0051682]
[1743391167137,0.72015818,81757.0,81756.0,0.0021682]
[1743391167341,0.67365818,81757.0,81756.0,0.0021682]
[1743391167581,0.67565818,81757.0,81756.0,0.0021682]
[1743391167788,0.41880018,81757.0,81756.0,0.0021682]
[1743391167993,0.67165818,81757.0,81756.0,0.0021682]
[1743391168220,0.03510018,81757.0,81756.0,0.0021682]
[1743391168406,0.03510018,81757.0,81756.0,0.1589992]
[1743391168605,0.03410018,81757.0,81756.0,0.1467682]
[1743391168847,0.03410018,81757.0,81756.0,0.1589992]
[1743391168989,0.03410018,81757.0,81756.0,0.1599992]
[1743391169587,0.01139716,81757.0,81756.0,0.1619992]
[1743391170336,0.01139716,81757.0,81756.0,0.1609992]
[1743391170703,0.01139716,81757.0,81756.0,0.1639992]
[1743391170907,0.0003364,81769.0,81757.0,0.09223692]
[1743391171269,0.0003364,81769.0,81768.0,0.256823]
[1743391171270,0.00038358,81769.0,81768.0,0.256823]
[1743391171477,0.00038358,81769.0,81768.0,0.892303]
[1743391172871,0.00038358,81769.0,81768.0,0.91084385]
[1743391173454,0.00038358,81769.0,81768.0,0.896303]
[1743391174093,0.00038358,81769.0,81768.0,0.901303]
[1743391178886,5.8e-07,81769.0,81768.0,1.53352868]
[1743391179217,5.8e-07,81769.0,81768.0,1.52452868]
[1743391179348,0.00100058,81769.0,81768.0,1.52952868]
[1743391180695,5.8e-07,81769.0,81768.0,1.53052868]
[1743391181070,5.8e-07,81769.0,81768.0,1.52452868]
[1743391181480,5.8e-07,81769.0,81768.0,1.53052868]
[1743391181677,5.8e-07,81769.0,81768.0,1.53652868]
[1743391184597,5.8e-07,81769.0,81768.0,1.33814385]
[1743391184802,5.8e-07,81769.0,81768.0,1.323603]
[1743391185023,5.8e-07,81769.0,81768.0,1.468523]
[1743391185804,5.8e-07,81769.0,81768.0,1.462523]
[1743391186189,5.8e-07,81769.0,81768.0,1.468523]
[1743391187674,5.8e-07,81769.0,81768.0,1.462523]
[1743391188356,5.8e-07,81769.0,81768.0,1.468523]
[1743391188766,5.8e-07,81769.0,81768.0,1.049223]
[1743391189663,5.8e-07,81769.0,81768.0,0.904303]
[1743391190012,5.8e-07,81769.0,81768.0,1.0492312]
[1743391190355,0.00033698,81769.0,81768.0,1.0492312]
[1743391190981,0.00033698,81769.0,81768.0,1.0491112]
[1743391195814,0.00033698,81769.0,81768.0,1.0488312]
[1743391201074,0.00033698,81769.0,81768.0,0.9044712]
[1743391201277,0.07763698,81769.0,81768.0,1.0484312]
[1743391202096,0.00033698,81769.0,81768.0,1.0484312]
[1743391202777,0.00033698,81769.0,81768.0,0.6416482]
[1743391202981,0.55715698,81769.0,81768.0,0.6416482]
[1743391203186,0.63445698,81769.0,81768.0,0.6466482]
[1743391203432,0.63445698,81769.0,81768.0,0.7845282]
[1743391203638,0.63445698,81769.0,81768.0,0.7905282]
[1743391203639,0.37763698,81769.0,81768.0,0.7905282]
[1743391203846,0.38986598,81769.0,81768.0,0.7905282]
[1743391204055,0.37763698,81769.0,81768.0,0.7905282]
[1743391204259,0.38907716,81769.0,81768.0,0.85858102]
[1743391204437,0.38907716,81769.0,81768.0,0.86058102]
[1743391204609,0.38907716,81769.0,81768.0,0.86558102]
[1743391205021,0.29954816,81769.0,81768.0,1.12240402]
[1743391205205,0.29954816,81769.0,81768.0,0.86558102]
[1743391205401,0.0773,81776.0,81769.0,0.244591]
[1743391205629,0.36705657,81800.0,81783.0,0.012227]
[1743391205630,6.5e-07,81784.0,81783.0,0.012227]
[1743391205835,6.5e-07,81784.0,81783.0,0.14404]
[1743391205993,0.01222765,81784.0,81783.0,0.14404]
[1743391206193,6.5e-07,81784.0,81783.0,0.14404]
[1743391206595,0.01222765,81784.0,81783.0,0.14404]
[1743391206932,0.01422765,81784.0,81783.0,0.14404]
[1743391207094,0.01222765,81784.0,81783.0,0.14404]
[1743391207494,0.01422765,81784.0,81783.0,0.14404]
[1743391208518,0.01422765,81784.0,81768.0,0.0001682]
[1743391208519,0.312229,81770.0,81768.0,0.0001682]
[1743391208717,0.4265,81770.0,81768.0,0.0001682]
[1743391208966,0.3773,81770.0,81768.0,0.0001682]
[1743391209171,0.634117,81770.0,81769.0,0.14454845]